fUST/lending_fUST_20251007
["ID","MTS","AMOUNT","RATE_DAILY","PERIOD"]
[389780104,1759846242268,-1000.0,0.00020596,2]
[389780106,1759846242277,-1000.0,0.00020596,2]
[389780108,1759846242287,-1000.0,0.00020596,2]
[389780110,1759846242297,-1000.0,0.00020596,2]
[389780112,1759846242311,-1000.0,0.00020596,2]
[389780114,1759846242320,-1000.0,0.00020596,2]
[389780116,1759846242330,-1000.0,0.00020596,2]
[389780118,1759846242339,-1000.0,0.00020596,2]
[389780120,1759846242349,-1000.0,0.00020596,2]
[389780122,1759846242360,-952.81151107,0.00020596,2]
[389780124,1759846242369,-164.66387778,0.00020596,2]
[389780126,1759846242378,-857.0,0.00020599,2]
[389780128,1759846242387,-1372.26531713,0.0002061,2]
[389780130,1759846242397,-1275.0,0.00020629,2]
[389780132,1759846242407,-857.0,0.0002065,2]
[389780134,1759846242416,-151.0,0.000207,3]
[389780136,1759846242425,-168.56193443,0.00020712,3]
[389780138,1759846242434,-857.0,0.00020758,2]
[389780140,1759846242443,-329.0,0.00020765,2]
[389780142,1759846242453,-329.0,0.00020765,2]
[389780144,1759846242463,-329.0,0.00020765,2]
[389780146,1759846242472,-329.0,0.00020765,2]
[389780148,1759846242481,-161.52172655,0.00020765,2]
[389780150,1759846242491,-3222.67748886,0.00020768,2]
[389780152,1759846242500,-151.0,0.000208,3]
[389780154,1759846242510,-151.0,0.000208,4]
[389780156,1759846242519,-1332.0,0.00020816,2]
[389780158,1759846242531,-279.06357233,0.00020824,2]
[389780160,1759846242540,-857.0,0.00020829,2]
[389780162,1759846242549,-857.0,0.00020838,2]
[389780164,1759846242560,-857.0,0.00020845,2]
[389780166,1759846242569,-857.0,0.00020851,2]
[389780168,1759846242578,-857.0,0.00020876,2]
[389780170,1759846242587,-377.85495995,0.00020895,2]
[389780172,1759846242597,-2000.0,0.000209,2]
[389780174,1759846242606,-253.09677656,0.000209,2]
[389780176,1759846242615,-1275.0,0.00020903,2]
[389780178,1759846242625,-177.14614789,0.0002096,2]
[389780180,1759846242633,-2000.0,0.00021,2]
[389780182,1759846242643,-200.0,0.00021,2]
[389780184,1759846242652,-10000.0,0.00021,5]
[389780186,1759846242664,-273.56835318,0.00021,2]
[389780188,1759846242673,-204.65924008,0.00021,2]
[389780190,1759846242682,-3000.0,0.00021,2]
[389780192,1759846242691,-151.0,0.00021,4]
[389780194,1759846242700,-79221.96,0.00021,2]
[389780196,1759846242709,-152.550784,0.00021,7]
[389780198,1759846242719,-572.09867,0.00021,7]
[389780200,1759846242728,-151.0,0.00021,7]
[389780202,1759846242737,-572.09867,0.00021,7]
[389780204,1759846242747,-572.09867,0.00021,7]
[389780206,1759846242756,-572.09867,0.00021,7]
[389780207,1759846242765,-233.417555,0.00021,7]
[389780209,1759846242776,-151.0,0.00021,7]
[389780211,1759846242786,-151.0,0.00021,7]
[389780213,1759846242797,-151.261214,0.00021,7]
[389780216,1759846242811,-151.0,0.00021,7]
[389780217,1759846242821,-246.368308,0.00021,7]
[389780219,1759846242831,-151.0,0.00021,7]
[389780221,1759846242841,-246.368308,0.00021,7]
[389780223,1759846242851,-246.368308,0.00021,7]
[389780225,1759846242861,-246.368308,0.00021,7]
[389780227,1759846242871,-151.0,0.00021,7]
[389780229,1759846242881,-151.0,0.00021,7]
[389780231,1759846242890,-246.787544,0.00021,7]
[389780233,1759846242899,-151.0,0.00021,7]
[389780235,1759846242908,-226.855339,0.00021,7]
[389780237,1759846242918,-226.855339,0.00021,7]
[389780239,1759846242927,-226.855339,0.00021,7]
[389780241,1759846242936,-226.855339,0.00021,7]
[389780243,1759846242945,-151.0,0.00021,7]
[389780245,1759846242955,-151.0,0.00021,7]
[389780247,1759846242965,-151.0,0.00021,7]
[389780249,1759846242978,-151.0,0.00021,7]
[389780252,1759846242987,-151.0,0.00021,7]
[389780254,1759846242997,-151.0,0.00021,7]
[389780256,1759846243007,-151.0,0.00021,7]
[389780258,1759846243018,-160.658113,0.00021,7]
[389780260,1759846243027,-151.0,0.00021,7]
[389780262,1759846243036,-151.0,0.00021,7]
[389780264,1759846243047,-151.0,0.00021,7]
[389780265,1759846243057,-151.0,0.00021,7]
[389780267,1759846243067,-152.159037,0.00021,7]
[389780270,1759846243076,-151.821237,0.00021,7]
[389780272,1759846243087,-1024.730886,0.00021,7]
[389780274,1759846243096,-1024.730886,0.00021,7]
[389780276,1759846243106,-1024.730886,0.00021,7]
[389780278,1759846243115,-1024.730886,0.00021,7]
[389780280,1759846243125,-151.0,0.00021,7]
[389780282,1759846243134,-151.0,0.00021,7]
[389780284,1759846243144,-151.0,0.00021,7]
[389780286,1759846243153,-151.0,0.00021,7]
[389780289,1759846243162,-1274.190011,0.00021,7]
[389780291,1759846243171,-1274.190011,0.00021,7]
[389780293,1759846243181,-432.621204,0.00021,7]
[389780295,1759846243191,-1274.190011,0.00021,7]
[389780297,1759846243202,-432.621204,0.00021,7]
[389780299,1759846243213,-1274.190011,0.00021,7]
[389780301,1759846243224,-432.621204,0.00021,7]
[389780303,1759846243234,-151.0,0.00021,7]
[389780305,1759846243244,-432.621204,0.00021,7]
[389780307,1759846243254,-151.0,0.00021,7]
[389780309,1759846243263,-259.541923,0.00021,7]
[389780312,1759846243273,-151.0,0.00021,7]
[389780315,1759846243283,-151.0,0.00021,7]
[389780317,1759846243292,-218.264212,0.00021,7]
[389780319,1759846243302,-218.264212,0.00021,7]
[389780321,1759846243318,-218.264212,0.00021,7]
[389780323,1759846243328,-218.264212,0.00021,7]
[389780325,1759846243337,-151.0,0.00021,7]
[389780327,1759846243347,-151.0,0.00021,7]
[389780329,1759846243356,-151.0,0.00021,7]
[389780331,1759846243365,-151.0,0.00021,7]
[389780333,1759846243375,-712.235839,0.00021,7]
[389780335,1759846243384,-151.0,0.00021,7]
[389780337,1759846243393,-712.235839,0.00021,7]
[389780339,1759846243403,-151.0,0.00021,7]
[389780341,1759846243413,-712.235839,0.00021,7]
[389780343,1759846243421,-151.0,0.00021,7]
[389780344,1759846243430,-712.235839,0.00021,7]
[389780347,1759846243440,-151.0,0.00021,7]
[389780348,1759846243449,-151.0,0.00021,7]
[389780350,1759846243459,-10000.0,0.00021,7]
[389780352,1759846243468,-158.576464,0.00021,7]
[389780354,1759846243478,-151.0,0.00021,7]
[389780357,1759846243487,-10000.0,0.00021,7]
[389780358,1759846243497,-10000.0,0.00021,7]
[389780361,1759846243506,-10000.0,0.00021,7]
[389780362,1759846243515,-4859.516855,0.00021,7]
[389780364,1759846243524,-217.77541,0.00021,7]
[389780366,1759846243533,-217.77541,0.00021,7]
[389780368,1759846243543,-217.77541,0.00021,7]
[389780370,1759846243552,-217.77541,0.00021,7]
[389780373,1759846243566,-151.0,0.00021,7]
[389780374,1759846243575,-151.0,0.00021,7]
[389780376,1759846243584,-151.0,0.00021,7]
[389780379,1759846243597,-151.0,0.00021,7]
[389780381,1759846243606,-151.0,0.00021,7]
[389780383,1759846243616,-151.0,0.00021,7]
[389780385,1759846243626,-151.0,0.00021,7]
[389780387,1759846243636,-151.0,0.00021,7]
[389780388,1759846243645,-151.0,0.00021,7]
[389780390,1759846243655,-153.068941,0.00021,7]
[389780392,1759846243665,-151.0,0.00021,7]
[389780394,1759846243676,-151.0,0.00021,7]
[389780396,1759846243688,-151.320484,0.00021,7]
[389780398,1759846243699,-151.0,0.00021,7]
[389780400,1759846243709,-151.0,0.00021,7]
[389780402,1759846243719,-151.0,0.00021,7]
[389780404,1759846243729,-151.0,0.00021,7]
[389780407,1759846243739,-151.0,0.00021,7]
[389780409,1759846243748,-1757.858221,0.00021,7]
[389780411,1759846243758,-304.822825,0.00021,7]
[389780412,1759846243767,-1757.858221,0.00021,7]
[389780414,1759846243777,-1757.858221,0.00021,7]
[389780416,1759846243786,-151.0,0.00021,7]
[389780418,1759846243796,-1757.858221,0.00021,7]
[389780420,1759846243806,-304.822825,0.00021,7]
[389780422,1759846243821,-304.822825,0.00021,7]
[389780424,1759846243832,-304.822825,0.00021,7]
[389780427,1759846243841,-153.74492,0.00021,7]
[389780429,1759846243851,-151.0,0.00021,7]
[389780431,1759846243860,-151.0,0.00021,7]
[389780433,1759846243870,-151.0,0.00021,7]
[389780435,1759846243881,-151.0,0.00021,7]
[389780436,1759846243891,-151.0,0.00021,7]
[389780439,1759846243901,-151.0,0.00021,7]
[389780441,1759846243912,-151.0,0.00021,7]
[389780443,1759846243922,-3000.0,0.0002101,2]
[389780445,1759846243931,-3000.0,0.0002102,2]
[389780447,1759846243942,-3000.0,0.0002103,2]
[389780449,1759846243957,-151.0,0.0002103,7]
[389780451,1759846243967,-400.986,0.0002103,2]
[389780453,1759846243977,-400.986,0.0002103,2]
[389780455,1759846243987,-400.986,0.0002103,2]
[389780457,1759846243999,-400.986,0.0002103,2]
[389780459,1759846244009,-151.0,0.0002103,7]
[389780461,1759846244018,-151.0,0.0002103,7]
[389780463,1759846244028,-3000.0,0.0002104,2]
[389780465,1759846244037,-3000.0,0.0002105,2]
[389780467,1759846244046,-151.0,0.0002105,7]
[389780469,1759846244055,-213.989612,0.0002105,7]
[389780471,1759846244070,-3000.0,0.0002106,2]
[389780473,1759846244079,-151.0,0.0002106,7]
[389780474,1759846244089,-152.298219,0.0002106,7]
[389780476,1759846244098,-151.0,0.0002106,7]
[389780478,1759846244107,-151.0,0.0002106,7]
[389780480,1759846244117,-151.0,0.0002106,7]
[389780482,1759846244126,-151.0,0.0002106,7]
[389780484,1759846244136,-151.0,0.0002106,7]
[389780486,1759846244146,-1757.858221,0.0002106,7]
[389780488,1759846244156,-1757.858221,0.0002106,7]
[389780490,1759846244165,-1757.858221,0.0002106,7]
[389780492,1759846244174,-151.0,0.0002106,7]
[389780494,1759846244184,-1757.858221,0.0002106,7]
[389780496,1759846244193,-304.822825,0.0002106,7]
[389780498,1759846244203,-304.822825,0.0002106,7]
[389780500,1759846244212,-304.822825,0.0002106,7]
[389780502,1759846244222,-304.822825,0.0002106,7]
[389780504,1759846244231,-151.0,0.0002106,7]
[389780506,1759846244241,-151.0,0.0002106,7]
[389780508,1759846244251,-151.0,0.0002106,7]
[389780511,1759846244261,-295.214375,0.0002106,7]
[389780512,1759846244270,-3500.0,0.0002106,2]
[389780515,1759846244279,-3500.0,0.0002106,2]
[389780516,1759846244288,-3500.0,0.0002106,2]
[389780518,1759846244297,-3500.0,0.0002106,2]
[389780520,1759846244312,-857.0,0.00021064,2]
[389780522,1759846244321,-151.0,0.00021068,7]
[389780524,1759846244331,-183.738867,0.00021068,7]
[389780527,1759846244341,-151.0,0.00021068,7]
[389780529,1759846244350,-151.0,0.00021068,7]
[389780530,1759846244359,-151.0,0.00021068,7]
[389780532,1759846244369,-151.0,0.00021068,7]
[389780534,1759846244378,-151.0,0.00021068,7]
[389780535,1759846244388,-151.0,0.00021068,7]
[389780536,1759846244397,-240.0,0.00021068,7]
[389780537,1759846244407,-240.0,0.00021068,7]
[389780538,1759846244416,-240.0,0.00021068,7]
[389780539,1759846244425,-240.0,0.00021068,7]
[389780540,1759846244434,-151.0,0.00021068,7]
[389780541,1759846244443,-151.0,0.00021068,7]
[389780542,1759846244452,-151.0,0.00021068,7]
[389780544,1759846244461,-151.0,0.00021068,7]
[389780547,1759846244472,-151.0,0.00021068,7]
[389780549,1759846244481,-151.0,0.00021068,7]
[389780550,1759846244491,-151.0,0.00021068,7]
[389780552,1759846244500,-151.0,0.00021068,7]
[389780555,1759846244510,-10000.0,0.00021068,7]
[389780557,1759846244520,-10000.0,0.00021068,7]
[389780559,1759846244529,-10000.0,0.00021068,7]
[389780561,1759846244539,-10000.0,0.00021068,7]
[389780563,1759846244548,-151.0,0.00021068,7]
[389780565,1759846244557,-151.0,0.00021068,7]
[389780566,1759846244569,-151.0,0.00021068,7]
[389780569,1759846244579,-151.0,0.00021068,7]
[389780571,1759846244589,-151.0,0.00021068,7]
[389780572,1759846244598,-151.0,0.00021068,7]
[389780575,1759846244607,-151.0,0.00021068,7]
[389780577,1759846244617,-151.0,0.00021068,7]
[389780579,1759846244627,-857.0,0.00021068,2]
[389780581,1759846244636,-1500.0,0.00021068,2]
[389780583,1759846244646,-3000.0,0.0002107,2]
[389780584,1759846244656,-500.0,0.00021073,2]
[389780587,1759846244669,-500.0,0.00021073,2]
[389780589,1759846244679,-500.0,0.00021073,2]
[389780591,1759846244688,-500.0,0.00021073,2]
[389780593,1759846244697,-291.31504269,0.00021073,2]
[389780595,1759846244707,-500.0,0.00021073,2]
[389780597,1759846244719,-500.0,0.00021073,2]
[389780599,1759846244728,-255.66736951,0.00021073,2]
[389780601,1759846244737,-150.56950836,0.00021073,2]
[389780603,1759846244746,-302.09070511,0.00021073,2]
[389780605,1759846244756,-500.0,0.00021073,2]
[389780607,1759846244765,-282.32951854,0.00021073,2]
[389780609,1759846244775,-500.0,0.00021073,2]
[389780611,1759846244784,-500.0,0.00021073,2]
[389780613,1759846244793,-500.0,0.00021073,2]
[389780615,1759846244802,-500.0,0.00021073,2]
[389780617,1759846244816,-500.0,0.00021073,2]
[389780619,1759846244825,-500.0,0.00021073,2]
[389780621,1759846244835,-500.0,0.00021073,2]
[389780641,1759846245011,-500.0,0.00021073,2]
[389780644,1759846245049,-500.0,0.00021073,2]
[389780646,1759846245066,-500.0,0.00021073,2]
[389780648,1759846245076,-500.0,0.00021073,2]
[389780650,1759846245086,-517.91923232,0.00021073,2]
[389780652,1759846245096,-510.46914813,0.00021073,2]
[389780654,1759846245105,-527.12120474,0.00021073,2]
[389780656,1759846245115,-500.0,0.00021073,2]
[389780658,1759846245125,-500.0,0.00021073,2]
[389780661,1759846245135,-500.0,0.00021073,2]
[389780663,1759846245145,-500.0,0.00021073,2]
[389780665,1759846245155,-500.0,0.00021073,2]
[389780667,1759846245166,-500.0,0.00021073,2]
[389780669,1759846245176,-500.0,0.00021073,2]
[389780671,1759846245186,-500.0,0.00021073,2]
[389780673,1759846245203,-163.92239522,0.00021073,2]
[389780675,1759846245214,-500.0,0.00021073,2]
[389780677,1759846245228,-161.55304732,0.00021073,2]
[389780680,1759846245239,-500.0,0.00021073,2]
[389780682,1759846245249,-500.0,0.00021073,2]
[389780684,1759846245259,-500.0,0.00021073,2]
[389780686,1759846245270,-500.0,0.00021073,2]
[389780688,1759846245281,-203.67230258,0.00021073,2]
[389780690,1759846245292,-500.0,0.00021073,2]
[389780692,1759846245302,-500.0,0.00021073,2]
[389780694,1759846245317,-500.0,0.00021073,2]
[389780696,1759846245328,-170.92839409,0.00021073,2]
[389780698,1759846245339,-500.0,0.00021073,2]
[389780700,1759846245350,-500.0,0.00021073,2]
[389780702,1759846245360,-500.0,0.00021073,2]
[389780704,1759846245370,-500.0,0.00021073,2]
[389780706,1759846245381,-449.72422841,0.00021073,2]
[389780708,1759846245391,-500.0,0.00021073,2]
[389780710,1759846245402,-500.0,0.00021073,2]
[389780712,1759846245412,-500.0,0.00021073,2]
[389780714,1759846245423,-500.0,0.00021073,2]
[389780716,1759846245433,-500.0,0.00021073,2]
[389780718,1759846245443,-3000.0,0.0002108,2]
[389780720,1759846245454,-2317.17915675,0.00021081,2]
[389780722,1759846245464,-5723.47522022,0.00021081,2]
[389780724,1759846245476,-3000.0,0.0002109,2]
[389780726,1759846245487,-3000.0,0.000211,2]
[389780729,1759846245499,-151.0,0.000211,7]
[389780731,1759846245510,-151.0,0.000211,7]
[389780732,1759846245519,-300.096182,0.000211,7]
[389780734,1759846245530,-151.0,0.000211,7]
[389780737,1759846245541,-402.02512307,0.000211,7]
[389780739,1759846245552,-533.72506543,0.000211,7]
[389780741,1759846245573,-533.72506543,0.000211,7]
[389780743,1759846245584,-402.02512307,0.000211,7]
[389780745,1759846245595,-402.02512307,0.000211,7]
[389780747,1759846245606,-533.72506543,0.000211,7]
[389780749,1759846245615,-3000.0,0.0002111,2]
[389780751,1759846245626,-3000.0,0.0002112,2]
[389780753,1759846245636,-260.0,0.00021123,2]
[389780755,1759846245646,-3000.0,0.0002113,2]
[389780757,1759846245656,-3000.0,0.0002114,2]
[389780759,1759846245666,-337.689,0.0002114,2]
[389780761,1759846245677,-179.565,0.0002114,2]
[389780763,1759846245687,-3000.0,0.0002115,2]
[389780765,1759846245698,-11375.88556264,0.0002115,7]
[389780767,1759846245709,-152.159177,0.00021152,4]
[389780769,1759846245719,-3000.0,0.0002116,2]
[389780771,1759846245733,-587.0,0.00021167,2]
[389780773,1759846245745,-587.0,0.00021167,2]
[389780775,1759846245755,-587.0,0.00021167,2]
[389780777,1759846245765,-12500.0,0.0002117,7]
[389780779,1759846245777,-3000.0,0.0002117,2]
[389780781,1759846245788,-1024.730886,0.0002117,7]
[389780783,1759846245799,-1024.730886,0.0002117,7]
[389780785,1759846245812,-1024.730886,0.0002117,7]
[389780787,1759846245823,-1024.730886,0.0002117,7]
[389780790,1759846245839,-151.0,0.0002117,7]
[389780792,1759846245849,-180.435888,0.0002117,7]
[389780793,1759846245861,-151.0,0.0002117,7]
[389780796,1759846245872,-225.320935,0.0002117,7]
[389780798,1759846245883,-1274.190011,0.0002117,7]
[389780800,1759846245894,-1274.190011,0.0002117,7]
[389780802,1759846245909,-432.621204,0.0002117,7]
[389780804,1759846245920,-1274.190011,0.0002117,7]
[389780806,1759846245930,-432.621204,0.0002117,7]
[389780808,1759846245941,-1274.190011,0.0002117,7]
[389780810,1759846245954,-432.621204,0.0002117,7]
[389780812,1759846245963,-151.0,0.0002117,7]
[389780814,1759846245973,-432.621204,0.0002117,7]
[389780815,1759846245983,-151.0,0.0002117,7]
[389780818,1759846245995,-151.0,0.0002117,7]
[389780820,1759846246006,-151.912284,0.0002117,7]
[389780821,1759846246017,-218.264212,0.0002117,7]
[389780823,1759846246027,-218.264212,0.0002117,7]
[389780826,1759846246038,-218.264212,0.0002117,7]
[389780827,1759846246048,-218.264212,0.0002117,7]
[389780830,1759846246062,-151.0,0.0002117,7]
[389780832,1759846246073,-151.0,0.0002117,7]
[389780834,1759846246084,-151.0,0.0002117,7]
[389780835,1759846246093,-151.0,0.0002117,7]
[389780838,1759846246103,-712.235839,0.0002117,7]
[389780840,1759846246114,-151.0,0.0002117,7]
[389780844,1759846246125,-712.235839,0.0002117,7]
[389780847,1759846246134,-151.0,0.0002117,7]
[389780849,1759846246145,-712.235839,0.0002117,7]
[389780853,1759846246155,-155.186527,0.0002117,7]
[389780856,1759846246166,-712.235839,0.0002117,7]
[389780859,1759846246177,-151.0,0.0002117,7]
[389780864,1759846246187,-217.77541,0.0002117,7]
[389780867,1759846246198,-217.77541,0.0002117,7]
[389780870,1759846246208,-217.77541,0.0002117,7]
[389780873,1759846246218,-217.77541,0.0002117,7]
[389780876,1759846246228,-857.0,0.0002117,2]
[389780878,1759846246238,-500.0,0.00021173,2]
[389780880,1759846246249,-1275.0,0.00021177,2]
[389780882,1759846246259,-3000.0,0.0002118,2]
[389780884,1759846246269,-572.09867,0.0002118,7]
[389780886,1759846246280,-151.0,0.0002118,7]
[389780888,1759846246291,-572.09867,0.0002118,7]
[389780890,1759846246301,-572.09867,0.0002118,7]
[389780892,1759846246317,-572.09867,0.0002118,7]
[389780894,1759846246326,-151.0,0.0002118,7]
[389780896,1759846246336,-268.880951,0.0002118,7]
[389780898,1759846246345,-151.0,0.0002118,7]
[389780900,1759846246355,-246.368308,0.0002118,7]
[389780902,1759846246365,-151.0,0.0002118,7]
[389780904,1759846246374,-246.368308,0.0002118,7]
[389780906,1759846246384,-246.368308,0.0002118,7]
[389780908,1759846246394,-246.368308,0.0002118,7]
[389780910,1759846246404,-151.0,0.0002118,7]
[389780912,1759846246415,-151.0,0.0002118,7]
[389780914,1759846246425,-151.0,0.0002118,7]
[389780916,1759846246435,-226.855339,0.0002118,7]
[389780918,1759846246446,-226.855339,0.0002118,7]
[389780920,1759846246456,-226.855339,0.0002118,7]
[389780923,1759846246465,-226.855339,0.0002118,7]
[389780925,1759846246475,-151.0,0.0002118,7]
[389780927,1759846246485,-151.0,0.0002118,7]
[389780929,1759846246494,-151.0,0.0002118,7]
[389780931,1759846246503,-151.0,0.0002118,7]
[389780933,1759846246514,-151.0,0.0002118,7]
[389780934,1759846246523,-259.195557,0.0002118,7]
[389780937,1759846246533,-151.0,0.0002118,7]
[389780939,1759846246542,-151.0,0.0002118,7]
[389780941,1759846246553,-151.0,0.0002118,7]
[389780943,1759846246570,-196.098455,0.0002118,7]
[389780945,1759846246579,-151.0,0.0002118,7]
[389780947,1759846246589,-151.0,0.0002118,7]
[389780949,1759846246599,-3000.0,0.0002119,2]
[389780951,1759846246609,-151.0,0.0002119,7]
[389780953,1759846246620,-400.986,0.0002119,2]
[389780955,1759846246629,-400.986,0.0002119,2]
[389780957,1759846246640,-400.986,0.0002119,2]
[389780959,1759846246650,-400.986,0.0002119,2]
[389780961,1759846246659,-151.0,0.0002119,7]
[389780963,1759846246669,-151.0,0.0002119,7]
[389780965,1759846246679,-3000.0,0.000212,2]
[389780967,1759846246689,-3000.0,0.0002121,2]
[389780969,1759846246699,-3000.0,0.0002122,2]
[389780971,1759846246709,-154.397771,0.0002122,7]
[389780973,1759846246719,-182.110453,0.0002122,7]
[389780975,1759846246729,-151.0,0.0002122,7]
[389780977,1759846246738,-151.0,0.0002122,7]
[389780979,1759846246748,-151.0,0.0002122,7]
[389780981,1759846246758,-151.0,0.0002122,7]
[389780983,1759846246768,-1757.858221,0.0002122,7]
[389780985,1759846246778,-1757.858221,0.0002122,7]
[389780987,1759846246788,-1757.858221,0.0002122,7]
[389780989,1759846246799,-163.033648,0.0002122,7]
[389780992,1759846246808,-1757.858221,0.0002122,7]
[389780993,1759846246825,-304.822825,0.0002122,7]
[389780996,1759846246835,-304.822825,0.0002122,7]
[389780998,1759846246845,-304.822825,0.0002122,7]
[389781000,1759846246855,-304.822825,0.0002122,7]
[389781002,1759846246867,-151.0,0.0002122,7]
[389781004,1759846246878,-151.0,0.0002122,7]
[389781005,1759846246888,-151.0,0.0002122,7]
[389781007,1759846246899,-3000.0,0.0002123,2]
[389781010,1759846246909,-3000.0,0.0002124,2]
[389781011,1759846246920,-3000.0,0.0002125,2]
[389781014,1759846246931,-151.0,0.0002125,7]
[389781016,1759846246942,-153.134092,0.0002125,7]
[389781018,1759846246955,-10000.0,0.0002125,7]
[389781020,1759846246966,-10000.0,0.0002125,7]
[389781021,1759846246976,-10000.0,0.0002125,7]
[389781023,1759846246986,-10000.0,0.0002125,7]
[389781026,1759846246997,-151.0,0.0002125,7]
[389781028,1759846247007,-151.0,0.0002125,7]
[389781029,1759846247017,-151.0,0.0002125,7]
[389781031,1759846247027,-151.0,0.0002125,7]
[389781034,1759846247039,-151.0,0.0002125,7]
[389781035,1759846247050,-273.831473,0.0002125,7]
[389781038,1759846247066,-151.0,0.0002125,7]
[389781040,1759846247076,-151.0,0.0002125,7]
[389781042,1759846247086,-3000.0,0.0002126,2]
[389781044,1759846247097,-3000.0,0.0002127,2]
[389781046,1759846247106,-3000.0,0.0002128,2]
[389781048,1759846247116,-3000.0,0.0002129,2]
[389781050,1759846247126,-2351.0,0.00021292,2]
[389781052,1759846247135,-3000.0,0.000213,2]
[389781054,1759846247145,-152.159177,0.000213,4]
[389781056,1759846247154,-151.0,0.00021302,7]
[389781058,1759846247166,-151.0,0.00021302,7]
[389781060,1759846247177,-151.0,0.00021302,7]
[389781062,1759846247186,-240.0,0.00021302,7]
[389781064,1759846247195,-240.0,0.00021302,7]
[389781066,1759846247205,-240.0,0.00021302,7]
[389781068,1759846247215,-240.0,0.00021302,7]
[389781070,1759846247225,-151.0,0.00021302,7]
[389781072,1759846247234,-151.0,0.00021302,7]
[389781074,1759846247244,-151.0,0.00021302,7]
[389781076,1759846247254,-268.594836,0.00021302,7]
[389781078,1759846247263,-151.0,0.00021302,7]
[389781080,1759846247273,-153.112927,0.00021302,7]
[389781082,1759846247283,-3000.0,0.0002131,2]
[389781084,1759846247293,-151.0,0.0002131,7]
[389781086,1759846247303,-3000.0,0.0002132,2]
[389781088,1759846247321,-3000.0,0.0002133,2]
[389781090,1759846247331,-151.449236,0.0002133,7]
[389781092,1759846247340,-3000.0,0.0002134,2]
[389781094,1759846247350,-329.0,0.00021347,2]
[389781096,1759846247359,-329.0,0.00021347,2]
[389781098,1759846247371,-329.0,0.00021347,2]
[389781100,1759846247380,-329.0,0.00021347,2]
[389781102,1759846247390,-3000.0,0.0002135,2]
[389781104,1759846247400,-3000.0,0.0002136,2]
[389781106,1759846247409,-3000.0,0.0002137,2]
[389781108,1759846247419,-1332.0,0.00021376,2]
[389781110,1759846247429,-3000.0,0.0002138,2]
[389781112,1759846247439,-3000.0,0.0002139,2]
[389781114,1759846247448,-151.0,0.0002139,7]
[389781116,1759846247458,-150000.0,0.0002139,2]
[389781118,1759846247468,-38224.5094017,0.0002139,2]
[389781120,1759846247479,-3000.0,0.000214,2]
[389781122,1759846247489,-12597.79876203,0.000214,2]
[389781124,1759846247499,-3000.0,0.0002141,2]
[389781127,1759846247508,-3000.0,0.0002142,2]
[389781129,1759846247518,-151.0,0.0002142,7]
[389781131,1759846247527,-151.0,0.0002142,7]
[389781133,1759846247536,-3000.0,0.0002143,2]
[389781135,1759846247546,-4849.063945,0.0002144,2]
[389781137,1759846247555,-151.0,0.00021445,7]